Workbook

Sheet Лист1
A2: Отчет по платным услугам, оказываемым учреждениями социального обслуживания
B3: Наименование организации
A4: №п/п | B4: Наименование | C4: объем платных услуг, оказанных подведомственными учреждениями на месяц (нарастающим итогом сначала года) тыс.руб. | D4: в том числе: объем платных услуг, оказанных подведомственными учреждениями за месяц (отчетный месяц) тыс.руб.
E5: Количество оказанных услуг за плату
E6: ВСЕГО (нарастающим итогом) | F6: за отчетный месяц | G6: ВСЕГО (нарастающим итогом) | H6: январь | I6: Февраль | J6: Март | K6: Апрель | L6: Май | M6: Июнь | N6: Июль | O6: Август | P6: Сентябрь | Q6: Октябрь | R6: Ноябрь | S6: Декабрь
B7: ВСЕГО: СОЦИАЛЬНЫЕ И ДОПОЛНИТЕЛЬНЫЕ УСЛУГИ | C7: =C252+C250 -> 0 | D7: =D252+D250 -> 0 | E7: =E252+E250 -> 0 | F7: =F252+F250 -> 0 | G7: =G252+G250 -> 0 | H7: =H252+H250 -> 0 | I7: =I252+I250 -> 0 | J7: =J252+J250 -> 0 | K7: =K252+K250 -> 0 | L7: =L252+L250 -> 0 | M7: =M252+M250 -> 0 | N7: =N252+N250 ->  | O7: =O252+O250 -> 0 | P7: =P252+P250 -> 0 | Q7: =Q252+Q250 -> 0 | R7: =R252+R250 -> 0 | S7: =S252+S250 -> 0
A8: СОЦИАЛЬНЫЕ УСЛУГИ
B9: I. Форма социального обслуживания на дому | C9: =C10+C25+C38+C48+C61+C67+C76+C82 -> 0 | D9: =D10+D25+D38+D48+D61+D67+D76+D82 -> 0 | E9: =E10+E25+E38+E48+E61+E67+E76+E82 -> 0 | F9: =F10+F25+F38+F48+F61+F67+F76+F82 -> 0 | G9: =G10+G25+G38+G48+G61+G67+G76+G82 -> 0 | S9: =S10+S25+S38+S48+S61+S67+S76+S82 -> 0
B10: 1. Социально-бытовые услуги | C10: =C11+C12+C13+C14+C15+C16+C17+C18+C19+C20+C21+C22+C23+C24 -> 0 | D10: =D11+D12+D13+D14+D15+D16+D17+D18+D19+D20+D21+D22+D23+D24 -> 0 | E10: =E11+E12+E13+E14+E15+E16+E17+E18+E19+E20+E21+E22+E23+E24 -> 0 | F10: =F11+F12+F13+F14+F15+F16+F17+F18+F19+F20+F21+F22+F23+F24 -> 0 | G10: =G11+G12+G13+G14+G15+G16+G17+G18+G19+G20+G21+G22+G23+G24 -> 0 | S10: =S11+S12+S13+S14+S15+S16+S17+S18+S19+S20+S21+S22+S23+S24 -> 0
A11: 1.1. | B11: Социальный патронаж
A12: 1.2. | B12: Покупка за счет средств получателя социальных услуг и доставка на дом продуктов питания, промышленных товаров первой необходимости, средств санитарии и гигиены, средств ухода, книг, газет, журналов
A13: 1.3. | B13: Помощь в приготовлении пищи
A14: 1.4. | B14: Помощь в приеме пищи (кормление)
A15: 1.5. | B15: Оплата за счет средств получателя социальных услуг жилищно-коммунальных услуг и услуг связи
A16: 1.6. | B16: Сдача за счет средств получателя социальных услуг вещей в стирку, химчистку, ремонт, обратная их доставка
A17: 1.7. | B17: Покупка за счет средств получателя социальных услуг топлива (в жилых помещениях без центрального отопления и (или) водоснабжения), топка печей, доставка воды
A18: 1.8. | B18: Организация помощи в проведении ремонта жилых помещений
A19: 1.9. | B19: Уборка жилых помещений
A20: 1.10. | B20: Обеспечение кратковременного присмотра за детьми
A21: 1.11. | B21: Отправка за счет средств получателя социальных услуг почтовой корреспонденции
A22: 1.12. | B22: Предоставление гигиенических услуг лицам, не способным по состоянию здоровья или в силу возраста полностью или частично самостоятельно осуществлять за собой уход
A23: 1.13. | B23: Содействие в организации обучения детей в образовательных организациях
A24: 1.14. | B24: Помощь в организации летнего отдыха и оздоровления детей из семей, находящихся в социально опасном положении
B25: 2. Социально-медицинские услуги | C25: =C26+C27+C28+C29+C30+C31+C32+C33+C34+C35+C36+C37 -> 0 | D25: =D26+D27+D28+D29+D30+D31+D32+D33+D34+D35+D36+D37 -> 0 | E25: =E26+E27+E28+E29+E30+E31+E32+E33+E34+E35+E36+E37 -> 0 | F25: =F26+F27+F28+F29+F30+F31+F32+F33+F34+F35+F36+F37 -> 0 | G25: =G26+G27+G28+G29+G30+G31+G32+G33+G34+G35+G36+G37 -> 0 | S25: =S26+S27+S28+S29+S30+S31+S32+S33+S34+S35+S36+S37 -> 0
A26: 2.1. | B26: Выполнение процедур, связанных с сохранением здоровья получателей социальных услуг (измерение температуры тела, артериального давления, контроль за приемом лекарств и др.)
A27: 2.2. | B27: Проведение оздоровительных мероприятий
A28: 2.3. | B28: Систематическое наблюдение за получателями социальных услуг в целях выявления отклонений
A29: 2.4. | B29: Консультирование по социально-медицинским вопросам (поддержания и сохранения здоровья получателей социальных услуг, проведения оздоровительных мероприятий, наблюдения за получателями социальных услуг в целях выявления отклонений в состоянии их здоровья)
A30: 2.5. | B30: Содействие в обеспечении по заключению врачей лекарственными средствами и изделиями медицинского назначения
A31: 2.6. | B31: Содействие в прохождении медико-социальной экспертизы
A32: 2.7. | B32: Содействие в госпитализации по медицинским показаниям в медицинские организации
A33: 2.8. | B33: Содействие в получении путевки на санаторно-курортное лечение
A34: 2.9. | B34: Содействие в получении зубопротезной и протезно-ортопедической помощи, а также в обеспечении техническими средствами реабилитации
A35: 2.10. | B35: Проведение занятий, обучающих здоровому образу жизни
A36: 2.11. | B36: Проведение занятий по адаптивной физической культуре
A37: 2.12. | B37: Содействие в бесплатном оказании медицинской помощи в объеме территориальной программы государственных гарантий оказания гражданам Российской Федерации бесплатной медицинской помощи:
B38: 3. Социально-психологические услуги | C38: =C39+C40+C41+C42+C43+C44+C45+C46+C47 -> 0 | D38: =D39+D40+D41+D42+D43+D44+D45+D46+D47 -> 0 | E38: =E39+E40+E41+E42+E43+E44+E45+E46+E47 -> 0 | F38: =F39+F40+F41+F42+F43+F44+F45+F46+F47 -> 0 | G38: =G39+G40+G41+G42+G43+G44+G45+G46+G47 -> 0 | S38: =S39+S40+S41+S42+S43+S44+S45+S46+S47 -> 0
A39: 3.1. | B39: Социально-психологическое консультирование, в том числе по вопросам внутрисемейных отношений:
A40: 3.2. | B40: Психологическая диагностика и обследование личности:
A41: 3.3. | B41: Психологическая помощь и поддержка, в том числе гражданам, осуществляющим уход на дому за тяжелобольными получателями социальных услуг:
A42: 3.4. | B42: Социально-психологический патронаж
A43: 3.5. | B43: Психологическая коррекция
A44: 3.6. | B44: Психологические тренинги:
A45: 3.7. | B45: Преодоление семейных конфликтов:
A46: 3.8. | B46: Содействие восстановлению утраченных контактов с семьей, внутри семьи
A47: 3.9. | B47: Оказание консультационной психологической помощи анонимно, в том числе экстренной психологической с использованием телефона доверия
B48: 4. Социально-педагогические услуги | C48: =C49+C50+C51+C52+C53+C54+C55+C56+C57+C58+C59+C60 -> 0 | D48: =D49+D50+D51+D52+D53+D54+D55+D56+D57+D58+D59+D60 -> 0 | E48: =E49+E50+E51+E52+E53+E54+E55+E56+E57+E58+E59+E60 -> 0 | F48: =F49+F50+F51+F52+F53+F54+F55+F56+F57+F58+F59+F60 -> 0 | G48: =G49+G50+G51+G52+G53+G54+G55+G56+G57+G58+G59+G60 -> 0 | S48: =S49+S50+S51+S52+S53+S54+S55+S56+S57+S58+S59+S60 -> 0
A49: 4.1. | B49: Содействие в обучении детей и подростков по школьной программе
A50: 4.2. | B50: Обучение родственников практическим навыкам общего ухода за тяжелобольными получателями социальных услуг, получателями социальных услуг, имеющими ограничения жизнедеятельности, в том числе детьми-инвалидами
A51: 4.3. | B51: Организация помощи родителям или законным представителям детей-инвалидов, воспитываемых дома, в обучении таких детей навыкам самообслуживания, общения и контроля, направленных на развитие личности
A52: 4.4. | B52: Социально-педагогическая коррекция, включая диагностику и консультирование
A53: 4.5. | B53: Формирование позитивных интересов (в том числе в сфере досуга) получателей социальных услуг
A54: 4.6. | B54: Организация досуга (праздники, экскурсии и другие культурные мероприятия)
A55: 4.7. | B55: Создание условий для дошкольного воспитания детей и получения школьного образования по специальным программам
A56: 4.8. | B56: Налаживание межличностных и внутрисемейных отношений
A57: 4.9. | B57: Социально-педагогический патронаж
A58: 4.10. | B58: Социально-педагогическое консультирование
A59: 4.11. | B59: Обучение инвалидов по зрению письму по Брайлю
A60: 4.12. | B60: Услуги по переводу на язык жестов при реализации индивидуальной программы реабилитации инвалидов (для инвалидов по слуху)
B61: 5. Социально-трудовые услуги | C61: =C62+C63+C64+C65+C66 -> 0 | D61: =D62+D63+D64+D65+D66 -> 0 | E61: =E62+E63+E64+E65+E66 -> 0 | F61: =F62+F63+F64+F65+F66 -> 0 | G61: =G62+G63+G64+G65+G66 -> 0 | S61: =S62+S63+S64+S65+S66 -> 0
A62: 5.1. | B62: Проведение мероприятий по использованию трудовых возможностей и обучению доступным профессиональным навыкам
A63: 5.2. | B63: Обучение основам домоводства (приготовление пищи, мелкий ремонт одежды, уход за квартирой и другое)
A64: 5.3. | B64: Оказание помощи в трудоустройстве, в том числе подростков в каникулярное время
A65: 5.4. | B65: Организация помощи в получении образования и (или) квалификации инвалидами (детьми-инвалидами) в соответствии с их способностями
A66: 5.5. | B66: Проведение мероприятий по обучению доступным профессиональным навыкам в целях социально-трудовой реабилитации, восстановления личностного и социального статуса
B67: 6. Социально-правовые услуги | C67: =C68+C69+C70+C71+C72+C73+C74+C75 -> 0 | D67: =D68+D69+D70+D71+D72+D73+D74+D75 -> 0 | E67: =E68+E69+E70+E71+E72+E73+E74+E75 -> 0 | F67: =F68+F69+F70+F71+F72+F73+F74+F75 -> 0 | G67: =G68+G69+G70+G71+G72+G73+G74+G75 -> 0 | S67: =S68+S69+S70+S71+S72+S73+S74+S75 -> 0
A68: 6.1. | B68: Оказание помощи в оформлении и восстановлении документов получателей социальных услуг
A69: 6.2. | B69: Оказание помощи в получении юридических услуг
A70: 6.3. | B70: Оказание бесплатной юридической помощи в соответствии с действующим законодательством
A71: 6.4. | B71: Оказание помощи в защите прав и законных интересов получателей социальных услуг
A72: 6.5. | B72: Содействие в получении установленных законодательством мер социальной поддержки
A73: 6.6. | B73: Оказание помощи по вопросам пенсионного обеспечения и предоставления других социальных выплат
A74: 6.7. | B74: Консультирование по вопросам, связанным с соблюдением и защитой прав и законных интересов получателей социальных услуг
A75: 6.8. | B75: Содействие лицам без определенного места жительства, находящимся в организациях социального обслуживания Московской области, в оформлении регистрации по месту пребывания в территориальных органах Федеральной миграционной службы по Московской области
B76: 7. Услуги в целях повышения коммуникативного потенциала получателей социальных услуг, имеющих ограничение жизнедеятельности, в том числе детей-инвалидов, семей и детей, находящихся в трудной жизненной ситуации | C76: =C77+C78+C79+C80+C81 -> 0 | D76: =D77+D78+D79+D80+D81 -> 0 | E76: =E77+E78+E79+E80+E81 -> 0 | F76: =F77+F78+F79+F80+F81 -> 0 | G76: =G77+G78+G79+G80+G81 -> 0 | S76: =S77+S78+S79+S80+S81 -> 0
A77: 7.1. | B77: Обучение инвалидов (детей-инвалидов) пользованию средствами ухода и техническими средствами реабилитации
A78: 7.2. | B78: Проведение социально-реабилитационных мероприятий в сфере социального обслуживания, в том числе в соответствии с индивидуальной программой реабилитации получателей социальной услуги
A79: 7.3. | B79: Обучение навыкам поведения в быту и общественных местах
A80: 7.4. | B80: Формирование у детей навыков общения, общежитейских навыков и умений
A81: 7.5. | B81: Оказание помощи в обучении навыкам компьютерной грамотности
B82: 8. Срочные социальные услуги | C82: =C83+C84+C85+C86+C87+C88 -> 0 | D82: =D83+D84+D85+D86+D87+D88 -> 0 | E82: =E83+E84+E85+E86+E87+E88 -> 0 | F82: =F83+F84+F85+F86+F87+F88 -> 0 | G82: =G83+G84+G85+G86+G87+G88 -> 0 | S82: =S83+S84+S85+S86+S87+S88 -> 0
A83: 8.1. | B83: Обеспечение бесплатным горячим питанием или наборами продуктов
A84: 8.2. | B84: Обеспечение одеждой, обувью и другими предметами первой необходимости
A85: 8.3. | B85: Содействие в получении временного жилого помещения
A86: 8.4. | B86: Содействие в получении юридической помощи в целях защиты прав и законных интересов получателей социальных услуг
A87: 8.5. | B87: Содействие в получении экстренной психологической помощи с привлечением к этой работе психологов и священнослужителей
A88: 8.6. | B88: Содействие в сборе и оформлении документов на получение социального обслуживания на дому
B89: II. Полустационарная форма социального обслуживания | C89: =C90+C101+C112+C122+C135+C141+C150+C156 -> 0 | D89: =D90+D101+D112+D122+D135+D141+D150+D156 -> 0 | E89: =E90+E101+E112+E122+E135+E141+E150+E156 -> 0 | F89: =F90+F101+F112+F122+F135+F141+F150+F156 -> 0 | G89: =G90+G101+G112+G122+G135+G141+G150+G156 -> 0 | S89: =S90+S101+S112+S122+S135+S141+S150+S156 -> 0
B90: 1. Социально-бытовые услуги | C90: =C91+C92+C93+C94+C95+C96+C97+C98+C99+C100 -> 0 | D90: =D91+D92+D93+D94+D95+D96+D97+D98+D99+D100 -> 0 | E90: =E91+E92+E93+E94+E95+E96+E97+E98+E99+E100 -> 0 | F90: =F91+F92+F93+F94+F95+F96+F97+F98+F99+F100 -> 0 | G90: =G91+G92+G93+G94+G95+G96+G97+G98+G99+G100 -> 0 | S90: =S91+S92+S93+S94+S95+S96+S97+S98+S99+S100 -> 0
A91: 1.1. | B91: Предоставление площади жилых помещений согласно утвержденным нормативам
A92: 1.2. | B92: Предоставление в пользование мебели согласно утвержденным нормативам
A93: 1.3. | B93: Предоставление помещений для организации реабилитационных мероприятий, трудотерапии, учебной деятельности, культурного и бытового обслуживания
A94: 1.4. | B94: Уборка жилых помещений и мест общего пользования
A95: 1.5. | B95: Помощь в приеме пищи (кормление)
A96: 1.6. | B96: Организация досуга и отдыха, в том числе обеспечение книгами, журналами, газетами, настольными играми, проведение экскурсий
A97: 1.7. | B97: Обеспечение питанием, в том числе диетическим (по медицинским показаниям) согласно утвержденным нормам
A98: 1.8. | B98: Обеспечение мягким инвентарем (одеждой, обувью, нательным бельем и постельными принадлежностями) согласно утвержденным нормативам
A99: 1.9. | B99: Отправка за счет средств получателя социальных услуг почтовой корреспонденции
A100: 1.10. | B100: Предоставление гигиенических услуг лицам, неспособным по состоянию здоровья или в силу возраста полностью или частично самостоятельно осуществлять за собой уход
B101: 2. Социально-медицинские услуги | C101: =C102+C103+C104+C105+C106+C107+C108+C109+C110+C111 -> 0 | D101: =D102+D103+D104+D105+D106+D107+D108+D109+D110+D111 -> 0 | E101: =E102+E103+E104+E105+E106+E107+E108+E109+E110+E111 -> 0 | F101: =F102+F103+F104+F105+F106+F107+F108+F109+F110+F111 -> 0 | G101: =G102+G103+G104+G105+G106+G107+G108+G109+G110+G111 -> 0 | S101: =S102+S103+S104+S105+S106+S107+S108+S109+S110+S111 -> 0
A102: 2.1. | B102: Выполнение процедур, связанных с сохранением здоровья получателей социальных услуг (измерение температуры тела, артериального давления, контроль за приемом лекарств и др.)
A103: 2.2. | B103: Выполнение санитарно-гигиенических процедур (купание, стрижка волос, ногтей, дезинфекция белья, одежды и др.)
A104: 2.3. | B104: Проведение оздоровительных мероприятий
A105: 2.4. | B105: Систематическое наблюдение за получателями социальных услуг в целях выявления отклонений в состоянии их здоровья
A106: 2.5. | B106: Консультирование по социально-медицинским вопросам (поддержания и сохранения здоровья получателей социальных услуг, проведения оздоровительных мероприятий, наблюдения за получателями социальных услуг в целях выявления отклонений в состоянии их здоровья)
A107: 2.6. | B107: Содействие в госпитализации по медицинским показаниям в медицинские организации
A108: 2.7. | B108: Содействие в обеспечении по заключению врачей лекарственными средствами и изделиями медицинского назначения
A109: 2.8. | B109: Проведение занятий, обучающих здоровому образу жизни
A110: 2.9. | B110: Проведение занятий по адаптивной физической культуре
A111: 2.10. | B111: Содействие в бесплатном оказании медицинской помощи в объеме территориальной программы государственных гарантий оказания гражданам Российской Федерации бесплатной медицинской помощи
B112: 3. Социально-психологические услуги | C112: =C113+C114+C115+C116+C117+C118+C119+C120+C121 -> 0 | D112: =D113+D114+D115+D116+D117+D118+D119+D120+D121 -> 0 | E112: =E113+E114+E115+E116+E117+E118+E119+E120+E121 -> 0 | F112: =F113+F114+F115+F116+F117+F118+F119+F120+F121 -> 0 | G112: =G113+G114+G115+G116+G117+G118+G119+G120+G121 -> 0 | S112: =S113+S114+S115+S116+S117+S118+S119+S120+S121 -> 0
A113: 3.1. | B113: Социально-психологическое консультирование, в том числе по вопросам внутрисемейных отношений
A114: 3.2. | B114: Психологическая диагностика и обследование личности
A115: 3.3. | B115: Психологическая помощь и поддержка, в том числе гражданам, осуществляющим уход на дому за тяжелобольными получателями социальных услуг
A116: 3.4. | B116: Социально-психологический патронаж
A117: 3.5. | B117: Психологическая коррекция
A118: 3.6. | B118: Психологические тренинги
A119: 3.7. | B119: Преодоление семейных конфликтов
A120: 3.8. | B120: Содействие восстановлению утраченных контактов с семьей, внутри семьи
A121: 3.9. | B121: Оказание консультационной психологической помощи анонимно, в том числе экстренной психологической с использованием телефона доверия
B122: 4. Социально-педагогические услуги | C122: =C123+C124+C125+C126+C127+C128+C129+C130+C131+C132+C133+C134 -> 0 | D122: =D123+D124+D125+D126+D127+D128+D129+D130+D131+D132+D133+D134 -> 0 | E122: =E123+E124+E125+E126+E127+E128+E129+E130+E131+E132+E133+E134 -> 0 | F122: =F123+F124+F125+F126+F127+F128+F129+F130+F131+F132+F133+F134 -> 0 | G122: =G123+G124+G125+G126+G127+G128+G129+G130+G131+G132+G133+G134 -> 0 | S122: =S123+S124+S125+S126+S127+S128+S129+S130+S131+S132+S133+S134 -> 0
A123: 4.1. | B123: Содействие в обучении детей и подростков по школьной программе
A124: 4.2. | B124: Обучение родственников практическим навыкам общего ухода за тяжелобольными получателями социальных услуг, получателями социальных услуг, имеющими ограничения жизнедеятельности, в том числе детьми-инвалидами
A125: 4.3. | B125: Организация помощи родителям или законным представителям детей-инвалидов, воспитываемых дома, в обучении таких детей навыкам самообслуживания, общения и контроля, направленных на развитие личности
A126: 4.4. | B126: Социально-педагогическая коррекция, включая диагностику и консультирование
A127: 4.5. | B127: Формирование позитивных интересов (в том числе в сфере досуга) получателей социальных услуг
A128: 4.6. | B128: Организация досуга (праздники, экскурсии и другие культурные мероприятия)
A129: 4.7. | B129: Создание условий для дошкольного воспитания детей и получения школьного образования по специальным программам
A130: 4.8. | B130: Налаживание межличностных и внутрисемейных отношений
A131: 4.9. | B131: Социально-педагогический патронаж
A132: 4.10. | B132: Социально-педагогическое консультирование
A133: 4.11. | B133: Обучение инвалидов по зрению письму по Брайлю
A134: 4.12. | B134: Услуги по переводу на язык жестов при реализации индивидуальной программы реабилитации инвалидов (для инвалидов по слуху)
B135: 5. Социально-трудовые услуги | C135: =C136+C137+C138+C139+C140 -> 0 | D135: =D136+D137+D138+D139+D140 -> 0 | E135: =E136+E137+E138+E139+E140 -> 0 | F135: =F136+F137+F138+F139+F140 -> 0 | G135: =G136+G137+G138+G139+G140 -> 0 | S135: =S136+S137+S138+S139+S140 -> 0
A136: 5.1. | B136: Проведение мероприятий по использованию трудовых возможностей и обучению доступным: профессиональным навыкам
A137: 5.2. | B137: Обучение основам домоводства (приготовление пищи, мелкий ремонт одежды, уход за квартирой и другое)
A138: 5.3. | B138: Оказание помощи в трудоустройстве, в том числе подростков в каникулярное время
A139: 5.4. | B139: Организация помощи в получении образования и (или) квалификации инвалидами (детьми-инвалидами) в соответствии с их способностями
A140: 5.5. | B140: Проведение мероприятий по обучению доступным профессиональным навыкам в целях социально-трудовой реабилитации, восстановления личностного и социального статуса
B141: 6. Социально-правовые услуги | C141: =C142+C143+C144+C145+C146+C147+C148+C149 -> 0 | D141: =D142+D143+D144+D145+D146+D147+D148+D149 -> 0 | E141: =E142+E143+E144+E145+E146+E147+E148+E149 -> 0 | F141: =F142+F143+F144+F145+F146+F147+F148+F149 -> 0 | G141: =G142+G143+G144+G145+G146+G147+G148+G149 -> 0 | S141: =S142+S143+S144+S145+S146+S147+S148+S149 -> 0
A142: 6.1. | B142: Оказание помощи в оформлении и восстановлении документов получателей социальных услуг
A143: 6.2. | B143: Оказание помощи в получении юридических услуг
A144: 6.3. | B144: Оказание бесплатной юридической помощи в соответствии с действующим законодательством
A145: 6.4. | B145: Оказание помощи в защите прав и законных интересов получателей социальных услуг
A146: 6.5. | B146: Содействие в получении установленных законодательством мер социальной поддержки
A147: 6.6. | B147: Оказание помощи по вопросам пенсионного обеспечения и предоставления других социальных выплат
A148: 6.7. | B148: Консультирование по вопросам, связанным с соблюдением и защитой прав и законных интересов получателей социальных услуг
A149: 6.8. | B149: Содействие лицам без определенного места жительства, находящихся в организациях социального обслуживания Московской области, в оформлении регистрации по месту пребывания в территориальных органах Федеральной миграционной службы по Московской области
B150: 7. Услуги в целях повышения коммуникативного потенциала получателей социальных услуг, имеющих ограничение жизнедеятельности, в том числе детей-инвалидов, семей и детей, находящихся в трудной жизненной ситуации | C150: =C151+C152+C153+C154+C155 -> 0 | D150: =D151+D152+D153+D154+D155 -> 0 | E150: =E151+E152+E153+E154+E155 -> 0 | F150: =F151+F152+F153+F154+F155 -> 0 | G150: =G151+G152+G153+G154+G155 -> 0 | S150: =S151+S152+S153+S154+S155 -> 0
A151: 7.1. | B151: Обучение инвалидов (детей-инвалидов) пользованию средствами ухода и техническими средствами реабилитации
A152: 7.2. | B152: Проведение социально-реабилитационных мероприятий в сфере социального обслуживания, в том числе в соответствии с индивидуальной программой реабилитации получателей социальной услуги
A153: 7.3. | B153: Обучение навыкам поведения в быту и общественных местах
A154: 7.4. | B154: Формирование у детей навыков общения, общежитейских навыков и умений
A155: 7.5. | B155: Оказание помощи в обучении навыкам компьютерной грамотности
B156: 8. Срочные социальные услуги | C156: =C157+C158+C159+C160+C161+C162 -> 0 | D156: =D157+D158+D159+D160+D161+D162 -> 0 | E156: =E157+E158+E159+E160+E161+E162 -> 0 | F156: =F157+F158+F159+F160+F161+F162 -> 0 | G156: =G157+G158+G159+G160+G161+G162 -> 0 | S156: =S157+S158+S159+S160+S161+S162 -> 0
A157: 8.1. | B157: Обеспечение бесплатным горячим питанием или наборами продуктов услуги
A158: 8.2. | B158: Обеспечение одеждой, обувью и другими предметами первой необходимости
A159: 8.3. | B159: Содействие в получении временного жилого помещения
A160: 8.4. | B160: Содействие в получении юридической помощи в целях защиты прав и законных интересов получателей социальных услуг
A161: 8.5. | B161: Содействие в получении экстренной психологической помощи с привлечением к этой работе психологов и священнослужителей
A162: 8.6. | B162: Содействие в сборе и оформлении документов на получение социального обслуживания на дому, в полустационарной форме или в стационарной форме
B163: III. Стационарная форма социального обслуживания | C163: =C164+C182+C199+C209+C222+C228+C237+C243 -> 0 | D163: =D164+D182+D199+D209+D222+D228+D237+D243 -> 0 | E163: =E164+E182+E199+E209+E222+E228+E237+E243 -> 0 | F163: =F164+F182+F199+F209+F222+F228+F237+F243 -> 0 | G163: =G164+G182+G199+G209+G222+G228+G237+G243 -> 92982 | H163: =H164+H182+H199+H209+H222+H228+H237+H243 -> 12548 | I163: =I164+I182+I199+I209+I222+I228+I237+I243 -> 11288 | J163: =J164+J182+J199+J209+J222+J228+J237+J243 -> 12490 | K163: =K164+K182+K199+K209+K222+K228+K237+K243 -> 14353 | L163: =L164+L182+L199+L209+L222+L228+L237+L243 -> 13257 | M163: =M164+M182+M199+M209+M222+M228+M237+M243 -> 14915 | N163: =N164+N182+N199+N209+N222+N228+N237+N243 -> 14131 | O163: =O164+O182+O199+O209+O222+O228+O237+O243 -> 0 | P163: =P164+P182+P199+P209+P222+P228+P237+P243 -> 0 | Q163: =Q164+Q182+Q199+Q209+Q222+Q228+Q237+Q243 -> 0 | R163: =R164+R182+R199+R209+R222+R228+R237+R243 -> 0 | S163: =S164+S182+S199+S209+S222+S228+S237+S243 -> 0
B164: 1. Социально-бытовые услуги | C164: =C165+C166+C167+C168+C169+C170+C171+C172+C173+C174+C175+C176+C177+C178+C179+C180+C181 -> 0 | D164: =D165+D166+D167+D168+D169+D170+D171+D172+D173+D174+D175+D176+D177+D178+D179+D180+D181 -> 0 | E164: =E165+E166+E167+E168+E169+E170+E171+E172+E173+E174+E175+E176+E177+E178+E179+E180+E181 -> 0 | F164: =F165+F166+F167+F168+F169+F170+F171+F172+F173+F174+F175+F176+F177+F178+F179+F180+F181 -> 0 | G164: =G165+G166+G167+G168+G169+G170+G171+G172+G173+G174+G175+G176+G177+G178+G179+G180+G181 -> 30624 | H164: =H165+H166+H167+H168+H169+H170+H171+H172+H173+H174+H175+H176+H177+H178+H179+H180+H181 -> 4223 | I164: =I165+I166+I167+I168+I169+I170+I171+I172+I173+I174+I175+I176+I177+I178+I179+I180+I181 -> 3553 | J164: =J165+J166+J167+J168+J169+J170+J171+J172+J173+J174+J175+J176+J177+J178+J179+J180+J181 -> 4037 | K164: =K165+K166+K167+K168+K169+K170+K171+K172+K173+K174+K175+K176+K177+K178+K179+K180+K181 -> 4654 | L164: =L165+L166+L167+L168+L169+L170+L171+L172+L173+L174+L175+L176+L177+L178+L179+L180+L181 -> 4703 | M164: =M165+M166+M167+M168+M169+M170+M171+M172+M173+M174+M175+M176+M177+M178+M179+M180+M181 -> 4840 | N164: =N165+N166+N167+N168+N169+N170+N171+N172+N173+N174+N175+N176+N177+N178+N179+N180+N181 -> 4614 | O164: =O165+O166+O167+O168+O169+O170+O171+O172+O173+O174+O175+O176+O177+O178+O179+O180+O181 -> 0 | P164: =P165+P166+P167+P168+P169+P170+P171+P172+P173+P174+P175+P176+P177+P178+P179+P180+P181 -> 0 | Q164: =Q165+Q166+Q167+Q168+Q169+Q170+Q171+Q172+Q173+Q174+Q175+Q176+Q177+Q178+Q179+Q180+Q181 -> 0 | R164: =R165+R166+R167+R168+R169+R170+R171+R172+R173+R174+R175+R176+R177+R178+R179+R180+R181 -> 0 | S164: =S165+S166+S167+S168+S169+S170+S171+S172+S173+S174+S175+S176+S177+S178+S179+S180+S181 -> 0
A165: 1.1. | B165: Предоставление площади жилого помещения согласно утвержденным нормативам | G165: =SUM(H165:S165) -> 4022 | H165: 580 | I165: 476 | J165: 529 | K165: 588 | L165: 622 | M165: 597 | N165: 630
A166: 1.2. | B166: Предоставление помещений для организации реабилитационных и лечебных мероприятий, трудотерапии, учебной деятельности, культурного и бытового обслуживания | G166: =SUM(H166:S166) -> 4022 | H166: 580 | I166: 476 | J166: 529 | K166: 588 | L166: 622 | M166: 597 | N166: 630
A167: 1.3. | B167: Предоставление в пользование мебели согласно утвержденным нормативам | G167: =SUM(H167:S167) -> 4022 | H167: 580 | I167: 476 | J167: 529 | K167: 588 | L167: 622 | M167: 597 | N167: 630
A168: 1.4. | B168: Обеспечение питанием, в том числе диетическим (по медицинским показаниям) согласно утвержденным нормам | G168: =SUM(H168:S168) -> 4022 | H168: 580 | I168: 476 | J168: 529 | K168: 588 | L168: 622 | M168: 597 | N168: 630
A169: 1.5. | B169: Обеспечение мягким инвентарем (одеждой, обувью, нательным бельем и постельными принадлежностями) согласно утвержденным нормативам | G169: =SUM(H169:S169) -> 0 | I169: 0 | J169: 0 | K169: 0 | L169: 0 | M169: 0 | N169: 0
A170: 1.6. | B170: Помощь в приеме пищи (кормление, в том числе через зонд) | G170: =SUM(H170:S170) -> 2881 | H170: 321 | I170: 279 | J170: 343 | K170: 487 | L170: 542 | M170: 534 | N170: 375
A171: 1.7. | B171: Уборка жилого помещения и мест общего пользования | G171: =SUM(H171:S171) -> 3294 | H171: 377 | I171: 397 | J171: 495 | K171: 487 | L171: 542 | M171: 534 | N171: 462
A172: 1.8. | B172: Предоставление гигиенических услуг лицам, не способным по состоянию здоровья или в силу возраста полностью или частично самостоятельно осуществлять за собой уход | G172: =SUM(H172:S172) -> 0 | I172: 0 | J172: 0 | K172: 0 | L172: 0 | M172: 0 | N172: 0
A173: 1.9. | B173: Организация досуга и отдыха, в том числе обеспечение книгами, журналами, газетами, настольными играми, проведение экскурсий | G173: =SUM(H173:S173) -> 5256 | H173: 761 | I173: 587 | J173: 674 | K173: 870 | L173: 667 | M173: 904 | N173: 793
A174: 1.10. | B174: Создание условий для отправления религиозных обрядов | G174: =SUM(H174:S174) -> 0 | I174: 0 | J174: 0 | K174: 0 | L174: 0 | N174: 0
A175: 1.11. | B175: Содействие в получении услуг, предоставляемых организациями торговли и связи | G175: =SUM(H175:S175) -> 0 | I175: 0 | J175: 0 | K175: 0 | L175: 0 | N175: 0
A176: 1.12. | B176: Отправка за счет средств получателя социальных услуг почтовой корреспонденции | G176: =SUM(H176:S176) -> 0 | I176: 0 | J176: 0 | K176: 0 | L176: 0 | N176: 0
A177: 1.13. | B177: Предоставление транспорта и/или сопровождающего для проезда к месту лечения, получения консультации, обучения | G177: =SUM(H177:S177) -> 729 | H177: 102 | I177: 98 | J177: 103 | K177: 98 | L177: 104 | M177: 120 | N177: 104
A178: 1.14. | B178: Оказание прачечных услуг (стирка белья, глажка) и дезинфекция | G178: =SUM(H178:S178) -> 2376 | H178: 342 | I178: 288 | J178: 306 | K178: 360 | L178: 360 | M178: 360 | N178: 360
A179: 1.15. | B179: Обеспечение сохранности личных вещей и ценностей, переданных поставщику социальных услуг на хранение | G179: =SUM(H179:S179) -> 0 | I179: 0 | J179: 0 | K179: 0 | L179: 0 | N179: 0
A180: 1.16. | B180: Содействие в получении жилого помещения лицам, из числа детей сирот и детей, оставшихся без попечения родителей, которые по достижению совершеннолетия способны проживать самостоятельно, в случае их отказа от социального обслуживания | G180: =SUM(H180:S180) -> 0 | I180: 0 | J180: 0 | K180: 0 | L180: 0 | N180: 0
A181: 1.17. | B181: Содействие в оказании ритуальных услуг | G181: =SUM(H181:S181) -> 0 | I181: 0 | J181: 0 | K181: 0 | L181: 0 | N181: 0
B182: 2. Социально-медицинские услуги | C182: =C183+C184+C185+C186+C187+C188+C189+C190+C191+C192+C193+C194+C195+C196+C197+C198 -> 0 | D182: =D183+D184+D185+D186+D187+D188+D189+D190+D191+D192+D193+D194+D195+D196+D197+D198 -> 0 | E182: =E183+E184+E185+E186+E187+E188+E189+E190+E191+E192+E193+E194+E195+E196+E197+E198 -> 0 | F182: =F183+F184+F185+F186+F187+F188+F189+F190+F191+F192+F193+F194+F195+F196+F197+F198 -> 0 | G182: =G183+G184+G185+G186+G187+G188+G189+G190+G191+G192+G193+G194+G195+G196+G197+G198 -> 25597 | H182: =H183+H184+H185+H186+H187+H188+H189+H190+H191+H192+H193+H194+H195+H196+H197+H198 -> 3615 | I182: =I183+I184+I185+I186+I187+I188+I189+I190+I191+I192+I193+I194+I195+I196+I197+I198 -> 3192 | J182: =J183+J184+J185+J186+J187+J188+J189+J190+J191+J192+J193+J194+J195+J196+J197+J198 -> 3492 | K182: =K183+K184+K185+K186+K187+K188+K189+K190+K191+K192+K193+K194+K195+K196+K197+K198 -> 3666 | L182: =L183+L184+L185+L186+L187+L188+L189+L190+L191+L192+L193+L194+L195+L196+L197+L198 -> 4043 | M182: =M183+M184+M185+M186+M187+M188+M189+M190+M191+M192+M193+M194+M195+M196+M197+M198 -> 4188 | N182: =N183+N184+N185+N186+N187+N188+N189+N190+N191+N192+N193+N194+N195+N196+N197+N198 -> 3401 | O182: =O183+O184+O185+O186+O187+O188+O189+O190+O191+O192+O193+O194+O195+O196+O197+O198 -> 0 | P182: =P183+P184+P185+P186+P187+P188+P189+P190+P191+P192+P193+P194+P195+P196+P197+P198 -> 0 | Q182: =Q183+Q184+Q185+Q186+Q187+Q188+Q189+Q190+Q191+Q192+Q193+Q194+Q195+Q196+Q197+Q198 -> 0 | R182: =R183+R184+R185+R186+R187+R188+R189+R190+R191+R192+R193+R194+R195+R196+R197+R198 -> 0 | S182: =S183+S184+S185+S186+S187+S188+S189+S190+S191+S192+S193+S194+S195+S196+S197+S198 -> 0
A183: 2.1. | B183: Обеспечение ухода с учетом состояния здоровья | G183: =SUM(H183:S183) -> 0 | I183: 0 | J183: 0 | K183: 0 | L183: 0 | M183: 0 | N183: 0
A184: 2.2. | B184: Систематическое наблюдение за получателями социальных услуг для выявления отклонений в состоянии их здоровья | G184: =SUM(H184:S184) -> 3616 | H184: 500 | I184: 444 | J184: 511 | K184: 570 | L184: 594 | M184: 625 | N184: 372
A185: 2.3. | B185: Выполнение процедур, связанных с сохранением здоровья получателей социальных услуг (измерение температуры тела, артериального давления, выполнение назначенных врачами медицинских процедур, контроль за приемом лекарств и др.) | G185: =SUM(H185:S185) -> 3633 | H185: 500 | I185: 444 | J185: 511 | K185: 570 | L185: 594 | M185: 625 | N185: 389
A186: 2.4. | B186: Выполнение санитарно-гигиенических процедур (купание, стрижка волос, ногтей, дезинфекция белья, одежды и др.) | G186: =SUM(H186:S186) -> 5589 | H186: 830 | I186: 715 | J186: 832 | K186: 867 | L186: 800 | M186: 780 | N186: 765
A187: 2.5. | B187: Проведение оздоровительных мероприятий | G187: =SUM(H187:S187) -> 8027 | H187: 1134 | I187: 935 | J187: 924 | K187: 922 | L187: 1295 | M187: 1463 | N187: 1354
A188: 2.6. | B188: Организация прохождения диспансеризации | G188: =SUM(H188:S188) -> 20 | I188: 0 | J188: 0 | K188: 0 | L188: 20 | M188: 0 | N188: 0
A189: 2.7. | B189: Содействие в прохождении медико-социальной экспертизы | G189: =SUM(H189:S189) -> 0 | I189: 0 | J189: 0 | K189: 0 | M189: 0 | N189: 0
A190: 2.8. | B190: Содействие в госпитализации по медицинским показаниям в медицинские организации | G190: =SUM(H190:S190) -> 6 | I190: 3 | J190: 0 | K190: 1 | L190: 0 | M190: 2 | N190: 0
A191: 2.9. | B191: Содействие в направлении по заключению врачей на санаторно-курортное лечение | G191: =SUM(H191:S191) -> 0 | I191: 0 | J191: 0 | K191: 0 | L191: 0 | M191: 0 | N191: 0
A192: 2.10. | B192: Содействие в получении зубопротезной и протезно-ортопедической помощи, а также в обеспечении техническими средствами реабилитации | G192: =SUM(H192:S192) -> 0 | I192: 0 | J192: 0 | K192: 0 | M192: 0 | N192: 0
A193: 2.11. | B193: Консультирование по социально-медицинским вопросам (поддержания и сохранения здоровья получателей социальных услуг, проведения оздоровительных мероприятий, наблюдения за получателями социальных услуг для выявления отклонений в состоянии их здоровья) | G193: =SUM(H193:S193) -> 2028 | H193: 216 | I193: 276 | J193: 287 | K193: 320 | L193: 381 | M193: 332 | N193: 216
A194: 2.12. | B194: Содействие в обеспечении по заключению врачей лекарственными средствами и изделиями медицинского назначения | G194: =SUM(H194:S194) -> 814 | H194: 143 | I194: 112 | J194: 167 | K194: 134 | L194: 104 | M194: 95 | N194: 59
A195: 2.13. | B195: Проведение занятий, обучающих здоровому образу жизни | G195: =SUM(H195:S195) -> 1793 | H195: 279 | I195: 248 | J195: 256 | K195: 265 | L195: 241 | M195: 258 | N195: 246
A196: 2.14. | B196: Проведение занятий по адаптивной физической культуре | G196: =SUM(H196:S196) -> 0 | I196: 0 | J196: 0 | K196: 0 | M196: 0 | N196: 0
A197: 2.15. | B197: Содействие в бесплатном оказании медицинской помощи в объеме территориальной программы государственных гарантий оказания гражданам Российской Федерации бесплатной медицинской помощи | G197: =SUM(H197:S197) -> 0 | I197: 0 | J197: 0 | K197: 0 | L197: 0 | M197: 0 | N197: 0
A198: 2.16. | B198: Содействие в оказании первичной медико-санитарной и стоматологической помощи | G198: =SUM(H198:S198) -> 71 | H198: 13 | I198: 15 | J198: 4 | K198: 17 | L198: 14 | M198: 8 | N198: 0
B199: 3. Социально-психологические услуги | C199: =C200+C201+C202+C203+C204+C205+C206+C207+C208 -> 0 | D199: =D200+D201+D202+D203+D204+D205+D206+D207+D208 -> 0 | E199: =E200+E201+E202+E203+E204+E205+E206+E207+E208 -> 0 | F199: =F200+F201+F202+F203+F204+F205+F206+F207+F208 -> 0 | G199: =G200+G201+G202+G203+G204+G205+G206+G207+G208 -> 1746 | H199: =H200+H201+H202+H203+H204+H205+H206+H207+H208 -> 212 | I199: =I200+I201+I202+I203+I204+I205+I206+I207+I208 -> 401 | J199: =J200+J201+J202+J203+J204+J205+J206+J207+J208 -> 331 | K199: =K200+K201+K202+K203+K204+K205+K206+K207+K208 -> 267 | L199: =L200+L201+L202+L203+L204+L205+L206+L207+L208 -> 103 | M199: =M200+M201+M202+M203+M204+M205+M206+M207+M208 -> 180 | N199: =N200+N201+N202+N203+N204+N205+N206+N207+N208 -> 252 | O199: =O200+O201+O202+O203+O204+O205+O206+O207+O208 -> 0 | P199: =P200+P201+P202+P203+P204+P205+P206+P207+P208 -> 0 | Q199: =Q200+Q201+Q202+Q203+Q204+Q205+Q206+Q207+Q208 -> 0 | R199: =R200+R201+R202+R203+R204+R205+R206+R207+R208 -> 0 | S199: =S200+S201+S202+S203+S204+S205+S206+S207+S208 -> 0
A200: 3.1. | B200: Социально-психологическое консультирование, в том числе по вопросам внутрисемейных отношений | G200: =SUM(H200:S200) -> 235 | H200: 17 | I200: 26 | J200: 45 | K200: 94 | L200: 16 | M200: 28 | N200: 9
A201: 3.2. | B201: Психологическая диагностика и обследование личности | G201: =SUM(H201:S201) -> 391 | H201: 41 | I201: 90 | J201: 81 | K201: 65 | L201: 15 | M201: 28 | N201: 71
... 54 more rows

Sheet Лист2

Sheet Лист3
